fUST/lending_fUST_20250512
["ID","MTS","AMOUNT","RATE_DAILY","PERIOD"]
[360789662,1747027679370,-2000.0,0.00035,120]
[360789663,1747027679395,-2000.0,0.00035,120]
[360789664,1747027679420,-2000.0,0.00035,120]
[360789665,1747027679445,-2000.0,0.00035,120]
[360789666,1747027679470,-1491.334215,0.00035,120]
[360789667,1747027679497,-130000.0,0.00035,30]
[360789668,1747027679521,-200000.0,0.00035,120]
[360789669,1747027679547,-2150.47354889,0.00035,120]
[360789670,1747027679573,-1526.34,0.00035098,51]
[360789671,1747027679599,-1526.34,0.00035198,79]
[360789672,1747027679623,-3698.88,0.0003528,90]
[360789673,1747027679647,-1526.34,0.00035298,45]
[360789674,1747027679672,-1526.34,0.00035398,88]
[360789675,1747027679697,-392.47151,0.000354,120]
[360789676,1747027679722,-238.05607,0.000354,120]
[360789677,1747027679747,-200.0,0.00035441,120]
[360789678,1747027679772,-1526.34,0.00035498,53]
[360789679,1747027679796,-1526.34,0.00035598,86]
[360789680,1747027679822,-1000.0,0.00035616,60]
[360789681,1747027679847,-1000.0,0.00035616,60]
[360789682,1747027679871,-1000.0,0.00035616,60]
[360789683,1747027679895,-1000.0,0.00035616,60]
[360789684,1747027679919,-529.53363674,0.00035616,60]
[360789685,1747027679943,-452.97526118,0.00035616,60]
[360789686,1747027679967,-353.57665136,0.00035616,30]
[360789688,1747027680115,-156.0,0.0003567,120]
[360789689,1747027680141,-156.0,0.0003567,120]
[360789690,1747027680168,-156.0,0.0003568,120]
[360789691,1747027680194,-156.0,0.0003568,120]
[360789692,1747027680221,-156.0,0.0003568,120]
[360789693,1747027680246,-163.98,0.0003568,120]
[360789694,1747027680273,-156.0,0.0003569,120]
[360789695,1747027680299,-156.0,0.0003569,120]
[360789696,1747027680324,-156.0,0.0003569,120]
[360789697,1747027680350,-156.0,0.0003569,120]
[360789698,1747027680375,-1526.34,0.00035698,40]
[360789699,1747027680401,-1526.34,0.00035798,48]
[360789700,1747027680427,-1526.34,0.00035898,83]
[360789701,1747027680454,-150.5,0.0003597,120]
[360789702,1747027680480,-293.0,0.0003597,120]
[360789703,1747027680512,-293.0,0.0003597,120]
[360789704,1747027680537,-150.5,0.0003598,120]
[360789705,1747027680564,-190.72,0.0003598,120]
[360789706,1747027680589,-293.0,0.0003598,120]
[360789707,1747027680616,-293.0,0.0003598,120]
[360789708,1747027680640,-293.0,0.0003598,120]
[360789709,1747027680666,-302.68,0.0003598,120]
[360789710,1747027680691,-150.5,0.0003599,120]
[360789711,1747027680716,-150.5,0.0003599,120]
[360789712,1747027680740,-293.0,0.0003599,120]
[360789713,1747027680764,-165.4,0.0003599,120]
[360789714,1747027680788,-293.0,0.0003599,120]
[360789715,1747027680813,-293.0,0.0003599,120]
[360789716,1747027680839,-293.0,0.0003599,120]
[360789717,1747027680865,-1526.34,0.00035998,90]
[360789718,1747027680890,-2106.93,0.00036,120]
[360789719,1747027680914,-8000.0,0.00036,30]
[360789720,1747027680939,-785.04548118,0.00036,30]
[360789721,1747027680966,-1526.34,0.00036098,30]
[360789722,1747027680991,-1526.34,0.00036198,45]
[360789723,1747027681015,-200.0,0.0003622,43]
[360789724,1747027681040,-1526.34,0.00036298,66]
[360789725,1747027681067,-1526.34,0.00036398,87]
[360789726,1747027681091,-1526.34,0.00036498,58]
[360789727,1747027681116,-911.91957343,0.000365,120]
[360789728,1747027681141,-218.9119,0.000365,120]
[360789729,1747027681167,-200.0,0.000365,120]
[360789730,1747027681192,-200.0,0.00036503,120]
[360789731,1747027681216,-1525.547833,0.0003653,120]
[360789732,1747027681240,-1526.34,0.00036598,41]
[360789733,1747027681266,-392.47154,0.000366,120]
[360789734,1747027681291,-238.05613,0.000366,120]
[360789735,1747027681316,-200.0,0.00036612,120]
[360789736,1747027681340,-200.0,0.0003662,120]
[360789737,1747027681367,-200.0,0.00036694,120]
[360789738,1747027681391,-1526.34,0.00036698,53]
[360789739,1747027681416,-200.0,0.00036782,120]
[360789740,1747027681444,-1526.34,0.00036798,42]
[360789741,1747027681469,-1526.34,0.00036898,58]
[360789742,1747027681496,-1526.52668985,0.00036998,43]
[360789743,1747027681521,-202.85793165,0.00037,120]
[360789744,1747027681548,-200.0,0.00037075,120]
[360789745,1747027681573,-150.0,0.000375,112]
[360789746,1747027681602,-200.0,0.00037615,120]
[360789747,1747027681627,-2100.0,0.00037808,60]
[360789748,1747027681652,-8000.0,0.00038,30]
[360789749,1747027681677,-1002.8996487,0.00038,120]
[360789750,1747027681702,-5000.0,0.00038,120]
[360789751,1747027681729,-218.9119,0.000382,120]
[360789752,1747027681754,-200.0,0.000382,120]
[360789753,1747027681778,-2100.0,0.00038356,60]
[360789754,1747027681803,-28799.70331349,0.0003836,30]
[360789755,1747027681828,-155.65581019,0.0003836,120]
[360789756,1747027681856,-155.65581019,0.0003836,120]
[360789757,1747027681881,-155.65581019,0.0003836,120]
[360789758,1747027681906,-155.65581019,0.0003836,120]
[360789759,1747027681932,-155.65581019,0.0003836,120]
[360789760,1747027681958,-155.65581019,0.0003836,120]
[360789761,1747027681985,-155.65581019,0.0003836,120]
[360789762,1747027682012,-155.65581019,0.0003836,120]
[360789763,1747027682037,-155.65581019,0.0003836,120]
[360789764,1747027682064,-155.65581019,0.0003836,120]
[360789765,1747027682089,-155.65581019,0.0003836,120]
[360789766,1747027682119,-155.65581019,0.0003836,120]
[360789767,1747027682144,-155.65581019,0.0003836,120]
[360789768,1747027682169,-155.65581019,0.0003836,120]
[360789769,1747027682195,-155.65581019,0.0003836,120]
[360789770,1747027682221,-155.65581019,0.0003836,120]
[360789771,1747027682247,-155.65581019,0.0003836,120]
[360789772,1747027682273,-155.65,0.0003836,120]
[360789773,1747027682298,-326.87720141,0.0003836,120]
[360789774,1747027682324,-326.87720141,0.0003836,120]
[360789775,1747027682353,-326.87720141,0.0003836,120]
[360789776,1747027682378,-326.87720141,0.0003836,120]
[360789777,1747027682404,-326.87720141,0.0003836,120]
[360789778,1747027682430,-326.87720141,0.0003836,120]
[360789779,1747027682457,-326.87720141,0.0003836,120]
[360789780,1747027682488,-326.87720141,0.0003836,120]
[360789781,1747027682525,-326.87720141,0.0003836,120]
[360789782,1747027682555,-326.87720141,0.0003836,120]
[360789783,1747027682715,-326.87720141,0.0003836,120]
[360789784,1747027682740,-326.87720141,0.0003836,120]
[360789785,1747027682766,-326.87720141,0.0003836,120]
[360789786,1747027682792,-326.87720141,0.0003836,120]
[360789787,1747027682816,-326.87720141,0.0003836,120]
[360789788,1747027682843,-326.87720141,0.0003836,120]
[360789789,1747027682871,-326.87720141,0.0003836,120]
[360789790,1747027682897,-326.87720141,0.0003836,120]
[360789791,1747027682922,-326.87720141,0.0003836,120]
[360789792,1747027682948,-326.87,0.0003836,120]
[360789793,1747027682974,-152.29056601,0.0003836,120]
[360789794,1747027683000,-152.29056601,0.0003836,120]
[360789795,1747027683028,-152.29056601,0.0003836,120]
[360789796,1747027683059,-152.29056601,0.0003836,120]
[360789797,1747027683085,-152.29056601,0.0003836,120]
[360789798,1747027683115,-152.29056601,0.0003836,120]
[360789799,1747027683142,-152.29056601,0.0003836,120]
[360789800,1747027683170,-152.29056601,0.0003836,120]
[360789801,1747027683196,-152.29056601,0.0003836,120]
[360789802,1747027683221,-152.29056601,0.0003836,120]
[360789803,1747027683248,-152.29056601,0.0003836,120]
[360789804,1747027683275,-152.29056601,0.0003836,120]
[360789805,1747027683303,-152.29056601,0.0003836,120]
[360789806,1747027683329,-152.29056601,0.0003836,120]
[360789807,1747027683357,-152.29056601,0.0003836,120]
[360789808,1747027683383,-152.29056601,0.0003836,120]
[360789809,1747027683409,-152.29056601,0.0003836,120]
[360789810,1747027683435,-152.29056601,0.0003836,120]
[360789811,1747027683460,-152.29,0.0003836,120]
[360789812,1747027683488,-337.57742132,0.0003836,120]
[360789813,1747027683518,-337.57742132,0.0003836,120]
[360789814,1747027683546,-337.57742132,0.0003836,120]
[360789815,1747027683572,-337.57742132,0.0003836,120]
[360789816,1747027683599,-337.57742132,0.0003836,120]
[360789817,1747027683626,-337.57742132,0.0003836,120]
[360789818,1747027683653,-337.57742132,0.0003836,120]
[360789819,1747027683680,-337.57742132,0.0003836,120]
[360789820,1747027683706,-337.57742132,0.0003836,120]
[360789821,1747027683733,-337.57742132,0.0003836,120]
[360789822,1747027683759,-337.57742132,0.0003836,120]
[360789823,1747027683785,-337.57742132,0.0003836,120]
[360789824,1747027683810,-337.57742132,0.0003836,120]
[360789825,1747027683836,-337.57742132,0.0003836,120]
[360789826,1747027683861,-337.57742132,0.0003836,120]
[360789827,1747027683886,-337.57742132,0.0003836,120]
[360789828,1747027683911,-337.57742132,0.0003836,120]
[360789829,1747027683936,-337.57742132,0.0003836,120]
[360789830,1747027683962,-337.57742132,0.0003836,120]
[360789831,1747027683988,-337.57,0.0003836,120]
[360789832,1747027684018,-296.71231224,0.0003836,120]
[360789833,1747027684044,-296.71231224,0.0003836,120]
[360789834,1747027684070,-296.71231224,0.0003836,120]
[360789835,1747027684096,-296.71231224,0.0003836,120]
[360789836,1747027684124,-296.71231224,0.0003836,120]
[360789837,1747027684151,-296.71231224,0.0003836,120]
[360789838,1747027684179,-296.71231224,0.0003836,120]
[360789839,1747027684205,-296.71231224,0.0003836,120]
[360789840,1747027684231,-296.71231224,0.0003836,120]
[360789841,1747027684257,-296.71231224,0.0003836,120]
[360789842,1747027684284,-296.71231224,0.0003836,120]
[360789843,1747027684310,-296.71231224,0.0003836,120]
[360789844,1747027684335,-296.71231224,0.0003836,120]
[360789845,1747027684365,-296.71231224,0.0003836,120]
[360789846,1747027684393,-296.71231224,0.0003836,120]
[360789847,1747027684421,-296.71231224,0.0003836,120]
[360789848,1747027684447,-296.71231224,0.0003836,120]
[360789849,1747027684474,-296.71231224,0.0003836,120]
[360789850,1747027684504,-296.71231224,0.0003836,120]
[360789851,1747027684530,-296.71,0.0003836,120]
[360789852,1747027684556,-692.32872856,0.0003836,120]
[360789853,1747027684585,-692.32872856,0.0003836,120]
[360789854,1747027684612,-692.32872856,0.0003836,120]
[360789855,1747027684636,-692.32872856,0.0003836,120]
[360789856,1747027684662,-692.32872856,0.0003836,120]
[360789857,1747027684687,-692.32872856,0.0003836,120]
[360789858,1747027684712,-692.32872856,0.0003836,120]
[360789859,1747027684737,-692.32872856,0.0003836,120]
[360789860,1747027684761,-692.32872856,0.0003836,120]
[360789861,1747027684786,-692.32872856,0.0003836,120]
[360789862,1747027684809,-692.32872856,0.0003836,120]
[360789863,1747027684841,-692.32872856,0.0003836,120]
[360789864,1747027684869,-692.32872856,0.0003836,120]
[360789865,1747027684895,-692.32872856,0.0003836,120]
[360789866,1747027684920,-692.32872856,0.0003836,120]
[360789867,1747027684948,-692.32872856,0.0003836,120]
[360789868,1747027684976,-692.32872856,0.0003836,120]
[360789869,1747027685001,-692.32872856,0.0003836,120]
[360789870,1747027685027,-692.32872856,0.0003836,120]
[360789871,1747027685052,-692.32,0.0003836,120]
[360789872,1747027685077,-5000.0,0.000385,45]
[360789873,1747027685103,-257.599999,0.000385,120]
[360789874,1747027685127,-200.0,0.0003858,49]
[360789875,1747027685154,-200.0,0.00038673,120]
[360789876,1747027685179,-4072.93143066,0.000387,30]
[360789877,1747027685205,-5317.1858686,0.000389,120]
[360789878,1747027685231,-2100.0,0.00038904,60]
[360789879,1747027685376,-166.0,0.00038904,49]
[360789880,1747027685401,-332.4932628,0.00038904,90]
[360789881,1747027685426,-1408.05593127,0.00039,120]
[360789882,1747027685450,-1394.90202606,0.00039,120]
[360789883,1747027685475,-100000.0,0.00039,120]
[360789884,1747027685502,-10000.0,0.00039,120]
[360789885,1747027685527,-5000.0,0.00039,120]
[360789886,1747027685554,-200.0,0.00039014,120]
[360789887,1747027685579,-200.0,0.00039196,120]
[360789888,1747027685604,-2698.88,0.0003928,90]
[360789889,1747027685628,-1001.96295883,0.000394,60]
[360789890,1747027685652,-2100.0,0.00039452,60]
[360789891,1747027685679,-19673.91,0.00039726,120]
[360789892,1747027685702,-218.9119,0.000399,120]
[360789893,1747027685729,-261.05516,0.000399,120]
[360789894,1747027685755,-160.0,0.0004,33]
[360789895,1747027685781,-4103.83997021,0.0004,120]
[360789896,1747027685808,-472.91612359,0.0004,90]
[360789897,1747027685834,-4379.948477,0.0004,120]
[360789898,1747027685861,-705.49178635,0.0004,120]
[360789899,1747027685885,-1368.846072,0.0004,120]
[360789900,1747027685913,-172.32144757,0.0004,60]
[360789901,1747027685938,-100414.37479899,0.0004,120]
[360789902,1747027685963,-5091.0,0.0004,70]
[360789903,1747027685988,-4428.0,0.0004,120]
[360789904,1747027686014,-308.66,0.0004,120]
[360789905,1747027686038,-1708.19173553,0.0004,120]
[360789906,1747027686064,-5000.0,0.0004,30]
[360789907,1747027686090,-100000.0,0.0004,120]
[360789908,1747027686117,-50529.5414557,0.0004,120]
[360789909,1747027686144,-20000.0,0.0004,120]
[360789910,1747027686170,-160.0,0.0004,33]
[360789911,1747027686195,-20038.0,0.0004,120]
[360789912,1747027686220,-997.78101552,0.0004,30]
[360789913,1747027686245,-212.17074216,0.0004,30]
[360789914,1747027686271,-19673.91,0.0004,120]
[360789915,1747027686296,-160.0,0.0004,30]
[360789916,1747027686320,-160.0,0.0004,30]
[360789917,1747027686345,-160.0,0.0004,30]
[360789918,1747027686371,-422.20096692,0.0004,30]
[360789919,1747027686394,-314.24507772,0.0004,30]
[360789920,1747027686419,-19673.91,0.00040273,120]
[360789921,1747027686444,-3266.99,0.0004028,90]
[360789922,1747027686468,-445.80943724,0.00040459,30]
[360789923,1747027686494,-19673.91,0.00040547,120]
[360789924,1747027686520,-225.80297651,0.00040548,120]
[360789925,1747027686547,-2100.0,0.00040548,60]
[360789926,1747027686573,-1470.23,0.00040661,30]
[360789927,1747027686602,-19673.91,0.00040821,120]
[360789928,1747027686627,-5000.0,0.00040865,30]
[360789929,1747027686652,-5000.0,0.00040865,30]
[360789930,1747027686676,-5000.0,0.00040865,30]
[360789931,1747027686701,-5000.0,0.00040865,30]
[360789932,1747027686725,-200.0,0.0004095,56]
[360789933,1747027686750,-160.0,0.00041,37]
[360789934,1747027686775,-5000.0,0.00041,120]
[360789935,1747027686799,-1756.63697008,0.00041,120]
[360789936,1747027686824,-10000.0,0.00041,120]
[360789937,1747027686851,-20000.0,0.00041,120]
[360789938,1747027686875,-4888.668,0.00041,120]
[360789939,1747027686899,-1276.2,0.00041041,60]
[360789940,1747027686923,-1276.2,0.00041041,60]
[360789941,1747027686949,-1276.2,0.00041041,60]
[360789942,1747027686973,-1276.2,0.00041041,60]
[360789943,1747027686997,-1276.2,0.00041041,60]
[360789944,1747027687022,-1276.2,0.00041041,60]
[360789945,1747027687046,-1276.2,0.00041041,60]
[360789946,1747027687070,-1276.2,0.00041041,60]
[360789947,1747027687094,-1276.2,0.00041041,60]
[360789948,1747027687120,-1276.2,0.00041041,60]
[360789949,1747027687144,-1276.2,0.00041041,60]
[360789950,1747027687169,-1276.2,0.00041041,60]
[360789951,1747027687192,-1276.2,0.00041041,60]
[360789952,1747027687217,-1276.2,0.00041041,60]
[360789953,1747027687242,-1276.2,0.00041041,60]
[360789954,1747027687266,-1276.2,0.00041041,60]
[360789955,1747027687291,-1276.2,0.00041041,60]
[360789956,1747027687315,-1276.2,0.00041041,60]
[360789957,1747027687338,-1276.2,0.00041041,60]
[360789958,1747027687364,-1276.2,0.00041041,60]
[360789959,1747027687388,-1276.2,0.00041041,60]
[360789960,1747027687412,-1276.2,0.00041041,60]
[360789961,1747027687435,-1276.2,0.00041041,60]
[360789962,1747027687459,-1276.32072596,0.00041041,60]
[360789963,1747027687482,-700.0,0.00041095,120]
[360789964,1747027687511,-700.0,0.00041095,120]
[360789965,1747027687534,-700.0,0.00041095,120]
[360789966,1747027687559,-700.0,0.00041095,120]
[360789967,1747027687584,-700.0,0.00041095,120]
[360789968,1747027687609,-700.0,0.00041095,120]
[360789969,1747027687634,-700.0,0.00041095,120]
[360789970,1747027687658,-700.0,0.00041095,120]
[360789971,1747027687683,-700.0,0.00041095,120]
[360789972,1747027687707,-700.0,0.00041095,120]
[360789973,1747027687853,-700.0,0.00041095,120]
[360789974,1747027687879,-700.0,0.00041095,120]
[360789975,1747027687904,-700.0,0.00041095,120]
[360789976,1747027687930,-700.0,0.00041095,120]
[360789977,1747027687956,-700.0,0.00041095,120]
[360789978,1747027687981,-823.82379908,0.00041095,120]
[360789979,1747027688008,-19673.91,0.00041095,120]
[360789980,1747027688033,-182.0,0.00041096,65]
[360789981,1747027688923,6203.73252031,0.0003836,30]
[360789982,1747027691279,997.78101552,0.00025,30]
[360789984,1747027696737,3900.9398306,0.000405,120]
[360789985,1747027701636,2000.0,0.00041096,30]
[360789986,1747027703467,212.17074216,0.00025,30]
[360789987,1747027703888,212.17074216,0.00026,120]
[360789988,1747027705626,212.17074216,0.00028,120]
[360789989,1747027707667,212.17074216,0.0004,30]
[360789990,1747027708674,212.17074216,0.0003,120]
[360789991,1747027712053,8000.0,0.00038,30]
[360789992,1747027714634,9958.21377357,0.0003,60]
[360789993,1747027714713,19825.61507862,0.00022001,120]
[360789994,1747027715004,12155.67330524,0.0003,120]
[360789995,1747027715766,7428.92899568,0.0004,120]
[360789996,1747027718008,15771.39711248,0.0004,120]
[360789997,1747027718051,15804.11728678,0.00025,120]
[360789998,1747027718895,27221.34736,0.00036,120]
[360789999,1747027720212,14403.86100209,0.0003,120]
[360790000,1747027720245,147082.46387865,0.0004,30]
[360790001,1747027720279,20310.48257825,0.0004,30]
[360790002,1747027720371,30595.57213682,0.0003988,120]
[360790004,1747027722477,36197.08327003,0.000395,30]
[360790008,1747027737262,-5566.0,0.00014182,2]
[360790012,1747027748094,-161.16221086,0.00014182,2]
[360790013,1747027748115,-300.0,0.0001615,2]
[360790014,1747027748138,-41.62926634,0.00016151,2]
[360790015,1747027748168,-500.0,0.00016151,2]
[360790016,1747027748189,-500.0,0.00016151,2]
[360790017,1747027748211,-500.0,0.00016151,2]
[360790018,1747027748232,-500.0,0.00016151,2]
[360790019,1747027748258,-500.0,0.00016151,2]
[360790020,1747027748280,-521.48216318,0.00016151,2]
[360790021,1747027748302,-500.0,0.00016151,2]
[360790022,1747027748331,-500.0,0.00016151,2]
[360790023,1747027748353,-500.0,0.00016151,2]
[360790024,1747027748375,-387.24394469,0.00016151,2]
[360790025,1747027748399,-500.0,0.00016151,2]
[360790026,1747027748421,-500.0,0.00016151,2]
[360790027,1747027748450,-500.0,0.00016151,2]
[360790028,1747027748471,-500.0,0.00016151,2]
[360790029,1747027748495,-270.85510425,0.00016151,2]
[360790030,1747027748522,-500.0,0.00016151,2]
[360790031,1747027748551,-250.0,0.00016151,2]
[360790032,1747027748574,-500.0,0.00016151,2]
[360790033,1747027748600,-500.0,0.00016151,2]
[360790034,1747027748631,-500.0,0.00016151,2]
[360790035,1747027748655,-413.04315147,0.00016151,2]
[360790036,1747027748680,-500.0,0.00016151,2]
[360790037,1747027748703,-500.0,0.00016151,2]
[360790038,1747027748873,-500.0,0.00016151,2]
[360790039,1747027748895,-479.57573784,0.00016151,2]
[360790040,1747027748921,-500.0,0.00016151,2]
[360790041,1747027748943,-500.0,0.00016151,2]
[360790042,1747027748965,-338.11204651,0.00016151,2]
[360790043,1747027748995,-500.0,0.00016151,2]
[360790044,1747027749025,-532.28279862,0.00016151,2]
[360790045,1747027749046,-300.0,0.00016151,2]
[360790046,1747027749068,-1200.0,0.00016151,2]
[360790047,1747027749091,-300.0,0.00016151,2]
[360790048,1747027749112,-9501.48147407,0.00016152,2]
[360790050,1747027754072,-23597.974937,0.00016152,2]
[360790051,1747027754094,-12.0,0.00016155,2]
[360790052,1747027754115,-500.0,0.00016333,2]
[360790053,1747027754136,-500.0,0.00016333,2]
[360790054,1747027754159,-273.83962421,0.00016333,2]
[360790055,1747027754179,-502.03255151,0.00016333,2]
[360790056,1747027754200,-500.0,0.00016333,2]
[360790057,1747027754223,-250.0,0.0001651,2]
[360790058,1747027754245,-500.0,0.00016525,2]
[360790060,1747027754269,-500.0,0.00016525,2]
[360790061,1747027754290,-500.0,0.00016525,2]
[360790062,1747027754312,-500.0,0.00016525,2]
[360790063,1747027754333,-500.0,0.00016525,2]
[360790064,1747027754355,-205.11549467,0.00016525,2]
[360790065,1747027754376,-500.0,0.00016525,2]
[360790066,1747027754397,-500.0,0.00016525,2]
[360790067,1747027754419,-220.00766358,0.00016525,2]
[360790068,1747027754442,-500.0,0.00016525,2]
[360790069,1747027754463,-500.0,0.00016525,2]
[360790070,1747027754485,-500.0,0.00016525,2]
[360790071,1747027754511,-500.0,0.00016525,2]
[360790072,1747027754532,-500.0,0.00016525,2]
[360790073,1747027754555,-500.0,0.00016525,2]
[360790074,1747027754577,-347.82556903,0.00016525,2]
[360790134,1747027832874,-300.0,0.00015999,2]
[360790135,1747027832883,-1200.0,0.00015999,2]
[360790136,1747027832893,-300.0,0.00015999,2]
[360790137,1747027832902,-20306.63270029,0.00016,2]
[360790663,1747027838972,-2460.90001,0.00016,2]
[360791121,1747027844166,-10389.0,0.00016,2]
[360791146,1747027844411,-210.89613979,0.00016,2]
[360791359,1747027846772,-334.76709015,0.00016,2]
[360791360,1747027846784,-4024.98278715,0.00016,2]
[360791994,1747027910631,-160.0,0.00031043,30]
[360791995,1747027910663,-160.0,0.00031043,30]
[360791996,1747027910689,-160.0,0.00031043,30]
[360791997,1747027910715,-160.0,0.00031043,30]
[360791998,1747027910741,-150.0,0.00031043,31]
[360791999,1747027910766,-200.0,0.00031043,31]
[360792000,1747027910946,-399.0,0.00031043,31]
[360792001,1747027910972,-504.0,0.00031043,31]
[360792002,1747027910999,-776.0,0.00031043,31]
[360792003,1747027911024,-798.0,0.00031043,31]
[360792004,1747027911050,-1232.0,0.00031043,31]
[360792005,1747027911077,-150.0,0.00031043,31]
[360792006,1747027911105,-150.0,0.00031043,31]
[360792007,1747027911131,-159.0,0.00031043,31]
[360792008,1747027911156,-150.0,0.00031043,31]
[360792009,1747027911180,-239.0,0.00031043,31]
[360792010,1747027911205,-479.0,0.00031043,31]
[360792011,1747027911229,-958.0,0.00031043,31]
[360792012,1747027911254,-1209.0,0.00031043,31]
[360792013,1747027911278,-1864.0,0.00031043,31]
[360792014,1747027911304,-1916.0,0.00031043,31]
[360792015,1747027911328,-2959.0,0.00031043,31]
[360792016,1747027911352,-150.0,0.00031043,120]
[360792017,1747027911378,-1427.82835822,0.00031043,30]
[360792018,1747027911403,-272.0,0.00031043,120]
[360792019,1747027911427,-2154.0,0.00031043,120]
[360792020,1747027911452,-1890.48,0.00031043,120]
[360792021,1747027911479,-1890.48,0.00031043,120]
[360792022,1747027911504,-1890.48,0.00031043,120]
[360792023,1747027911531,-1890.48,0.00031043,120]
[360792024,1747027911559,-1890.48,0.00031043,120]
[360792025,1747027911590,-1890.48,0.00031043,120]
[360792026,1747027911616,-1890.48,0.00031043,120]
[360792027,1747027911642,-1890.48,0.00031043,120]
[360792028,1747027911668,-1890.48,0.00031043,120]
[360792029,1747027911693,-1890.48,0.00031043,120]
[360792030,1747027911718,-1890.48,0.00031043,120]
[360792031,1747027911744,-1890.48,0.00031043,120]
[360792032,1747027911769,-1890.48,0.00031043,120]
[360792033,1747027911795,-1890.48,0.00031043,120]
[360792034,1747027911819,-662.22885714,0.00031043,120]
[360792035,1747027911845,-1890.48,0.00031043,120]
[360792036,1747027911871,-1890.48,0.00031043,120]
[360792037,1747027911897,-1890.48,0.00031043,120]
[360792038,1747027911924,-1890.48,0.00031043,120]
[360792039,1747027911950,-1890.48,0.00031043,120]
[360792040,1747027911977,-1890.48,0.00031043,120]
[360792041,1747027912003,-1890.48,0.00031043,120]
[360792042,1747027912030,-1890.48,0.00031043,120]
[360792043,1747027912056,-1890.48,0.00031043,120]
[360792044,1747027912082,-1890.53600798,0.00031043,120]
[360792045,1747027912108,-612.3349991,0.00031043,30]
[360792046,1747027912133,-1175.68382811,0.00031043,30]
[360792047,1747027912158,-1119.10944198,0.00031043,32]
[360792048,1747027912184,-262.88740276,0.00031043,120]
[360792049,1747027912209,-543.23825161,0.00031043,120]
[360792050,1747027912235,-463.32474817,0.00031043,120]
[360792051,1747027912262,-910.12230608,0.00031043,120]
[360792052,1747027912290,-1985.46107675,0.00031043,120]
[360792053,1747027912315,-2765.32401016,0.00031043,120]
[360792054,1747027912341,-839.4758719,0.00031043,120]
[360792055,1747027912368,-683.9780169,0.00031043,120]
[360792056,1747027912393,-3243.78287037,0.00031043,30]
[360792057,1747027912418,-240.82074905,0.00031043,120]
[360792058,1747027912443,-3441.00308729,0.00031043,30]
[360792059,1747027912468,-2000.0,0.00031043,120]
[360792060,1747027912493,-242.44494163,0.00031043,30]
[360792061,1747027912517,-3035.93861939,0.00031043,30]
[360792062,1747027912543,-1093.68798268,0.00031043,120]
[360792063,1747027912571,-3197.01121313,0.00031043,120]
[360792064,1747027912595,-2222.01582099,0.00031043,30]
[360792065,1747027912620,-2582.35501223,0.00031043,120]
[360792066,1747027912645,-2431.12829852,0.00031043,120]
[360792067,1747027912671,-1001.16445832,0.00031043,120]
[360792068,1747027912697,-3189.27277172,0.00031043,30]
[360792069,1747027912721,-900.90756916,0.00031043,120]
[360792070,1747027912747,-461.4447038,0.00031043,120]
[360792071,1747027912772,-423.87650298,0.00031043,120]
[360792072,1747027912801,-2291.70271424,0.00031043,120]
[360792073,1747027912826,-214.54992932,0.00031043,120]
[360792074,1747027912850,-314.97761289,0.00031043,120]
[360792075,1747027912875,-202.47368134,0.00031043,120]
[360792076,1747027912898,-176.95714961,0.00031043,30]
[360792077,1747027912923,-422.3909952,0.00031043,30]
[360792078,1747027912947,-2204.24865096,0.00031043,120]
[360792079,1747027912972,-268.10977845,0.00031043,120]
[360792080,1747027912997,-905.40675695,0.00031043,120]
[360792081,1747027913024,-2118.8794064,0.00031043,30]
[360792082,1747027913051,-218.00558904,0.00031043,120]